Cogmind - Beta 10.2 @@@ ROGUE MODE // 2021.03.09 @ 21:37:10 Player: Azormik Result: Destroyed by G-47 Trooper with Particle Gun Performance ------------- Evolutions (2) 1000 Regions Visited (3) 600 Robots Destroyed (16) 80 Value Destroyed (519) 519 Prototype IDs (0) 0 Alien Tech Used (0) 0 Bonus (0) 0 TOTAL SCORE: 2199 Bonus ------- None Cogmind --------- Core Integrity 0/550 Matter 234/300 Energy 100/100 System Corruption 1% Temperature Cool (9) Movement Core (50) Location -8/Materials Parts ------- > --- POWER (1) -------- (None) > --- PROPULSION (4) --- (None) > --- UTILITY (4) ------ (None) > --- WEAPON (2) ------- (None) > --- INVENTORY (4) ---- Datajack Peak State ------------ > --- POWER ------------ Light Ion Engine > --- PROPULSION ------- Wheel Compact Wheel > --- UTILITY ---------- Small Storage Unit Sensor Array Targeting Computer > --- WEAPON ----------- Light EM Pulse Cannon Light Assault Rifle > --- INVENTORY -------- Light Ion Engine Aluminum Leg Aluminum Leg Light Assault Rifle Grenade Launcher Datajack [Rating: 9] Favorites ----------- Power Light Ion Engine Engine Light Ion Engine Propulsion Compact Wheel Leg Aluminum Leg Wheel Compact Wheel Utility Small Storage Unit Device Sensor Array Storage Small Storage Unit Processor Targeting Computer Weapon Light Assault Rifle Energy Gun EM Pulse Gun Energy Cannon Light EM Pulse Cannon Ballistic Gun Light Assault Rifle Launcher Grenade Launcher Special Melee Weapon Datajack Build | -11 -10 -9 -8 ------- Run | Scr Mat Mat Mat Slots Evolved 4 | . . 2 2 Power . | . . . . Propulsion 2 | . . 1 1 Utility 2 | . . 1 1 Weapon . | . . . . Parts Attached 19 | 5 6 2 6 Power 3 | 1 1 . 1 Engine 3 | 1 1 . 1 Core . | . . . . Reactor . | . . . . Propulsion 5 | 2 . . 3 Treads . | . . . . Leg 3 | . . . 3 Wheel 2 | 2 . . . Hover . | . . . . Flight . | . . . . Utility 3 | 1 1 1 . Device 1 | . . 1 . Storage 1 | 1 . . . Processor 1 | . 1 . . Hackware . | . . . . Protection . | . . . . Artifact . | . . . . Weapon 8 | 1 4 1 2 Energy Gun 1 | . 1 . . Energy Cannon 1 | . . 1 . Ballistic Gun 4 | 1 2 . 1 Ballistic Cannon . | . . . . Launcher 1 | . . . 1 Special Weapon . | . . . . Impact Weapon . | . . . . Slashing Weapon . | . . . . Piercing Weapon . | . . . . Special Melee Weapon 1 | . 1 . . Unidentified Prototypes . | . . . . Parts Lost 16 | . 2 . 14 Power 3 | . 1 . 2 Propulsion 5 | . . . 5 Utility 3 | . . . 3 Weapon 5 | . 1 . 4 Highest Loss Streak 8 | . 2 . 8 Average Slot Usage (%) 83 | . 96 78 50 Engine 10 | . 11 11 6 Leg 1 | . . . 6 Wheel 22 | . 28 22 6 Device 1 | . . 1 3 Storage 12 | . 14 11 9 Processor 11 | . 13 11 7 Energy Gun 2 | . 4 . . Energy Cannon 3 | . . 11 3 Ballistic Gun 10 | . 12 11 5 Special Melee Weapon 5 | . 10 . . Naked Turns 6 | . . . 6 Heaviest Build 13 | 10 12 13 13 Greatest Support 30 | 26 26 26 30 Greatest Overweight (x) 1 | 1 . . 1 Average Overweight (x) . | . . . . Largest Inventory Capacity 6 | 6 6 6 6 Average Capacity 5 | 4 6 6 5 Most Carried 6 | 4 6 6 6 Average Carried 3 | 2 3 6 3 Final Capacity 6 | 6 6 6 4 Final Carried 6 | 2 6 6 1 Class Distribution -------------------- 100% | Mutant Dominant Class ---------------- Mutant | -10/Materials Mutant | -9/Materials Mutant | -8/Materials Resources | -11 -10 -9 -8 ----------- Run | Scr Mat Mat Mat Matter Collected 349 | 250 66 12 21 Remotely . | . . . . Salvage Created 450 | . 247 82 121 Parts 32 | . 11 8 13 Haulers Intercepted . | . . . . Recyclers Shooed 1 | . 1 . . Parts Field Recycled . | . . . . Retrieved Matter . | . . . . Parts Self-Destructed . | . . . . Prevented . | . . . . Kills | -11 -10 -9 -8 ------- Run | Scr Mat Mat Mat Combat Hostiles Destroyed 10 | . 5 1 4 Guns 3 | . 3 . . Cannons 1 | . . 1 . AOE 6 | . 2 . 4 Classes Destroyed 6 | . 1 2 3 Builder 4 | . . . 4 Operator 1 | . . . 1 Watcher 1 | . . 1 . Grunt 8 | . 5 . 3 Sentry 1 | . . 1 . Hunter 1 | . . . 1 Best Kill Streak 8 | . 4 1 8 Combat Bots Only 4 | . 4 1 4 Max Kills in Single Turn 2 | . 1 1 2 Gunslinging . | . . . . Exploded 2 | . 1 . 2 Melee . | . . . . Uniques/NPCs Destroyed . | . . . . Combat | -11 -10 -9 -8 -------- Run | Scr Mat Mat Mat Damage Taken 1725 | . 334 79 1312 Core 758 | . 182 17 559 Absorbed by Shields . | . . . . Core Remaining (%) 74 | 100 27 95 . Volleys Fired 38 | . 22 2 14 Largest 2 | . 1 2 2 Hottest 76 | . 40 76 76 Shots Fired 53 | . 22 4 27 Gun 38 | . 22 2 14 Cannon 7 | . . 2 5 Launcher 8 | . . . 8 Special . | . . . . Kinetic 22 | . 6 2 14 Thermal . | . . . . Explosive 8 | . . . 8 Electromagnetic 23 | . 16 2 5 Robot Hit Streak 13 | . 13 5 11 Robot Miss Streak 1 | . 1 . 1 Penetration Max . | . . . . Secondary Targets . | . . . . Shots Hit Robots 47 | . 20 4 23 Core Hits 38 | . 8 3 27 Critical Hits . | . . . . Critical Kills . | . . . . Critical Parts Destroyed . | . . . . Melee Attacks 4 | . 4 . . Impact . | . . . . Slashing . | . . . . Piercing . | . . . . Sneak Attacks . | . . . . Combat Hostiles . | . . . . Follow-up Attacks . | . . . . Damage Inflicted 1428 | . 354 116 958 Guns 334 | . 235 18 81 Cannons 166 | . . 58 108 Explosions 902 | . 119 40 743 Melee . | . . . . Ramming 26 | . . . 26 Kinetic 143 | . 44 18 81 Thermal 272 | . 119 40 113 Explosive 630 | . . . 630 Electromagnetic 357 | . 191 58 108 Impact . | . . . . Slashing . | . . . . Piercing . | . . . . Highest Corruption 1 | . 1 . 1 Average Corruption 1 | . 1 . 1 Corruption Purged . | . . . . Effects 1 | . 1 . . Energy Discharges 1 | . 1 . . Overload Shots . | . . . . Overflow Damage 15 | . . . 15 Projectiles 6 | . . . 6 Explosions 9 | . . . 9 Melee . | . . . . Knockbacks . | . . . . Impact . | . . . . Kinetic . | . . . . Secondary . | . . . . Self-Inflicted Damage 265 | . 157 31 77 Shots 5 | . 3 1 1 Rammed 11 | . . . 11 Targets Rammed 11 | . . . 11 Kicked . | . . . . Crushed . | . . . . Highest Temperature 63 | . 37 42 63 Average Temperature 16 | . 11 23 19 Received Heat Transfer 672 | . 96 9 567 Siege Activations . | . . . . Robots Corrupted . | . . . . Combat Hostiles . | . . . . Parts Fried 2 | . 1 . 1 Impact Corruptions . | . . . . Robots Melted . | . . . . Combat Hostiles . | . . . . Parts Melted . | . . . . Heat Transferred 350 | . 200 50 100 Parts Sabotaged . | . . . . Parts Stolen . | . . . . Parts Stripped . | . . . . Power Chain Reactions 4 | . 2 1 1 Missiles Intercepted . | . . . . Alert | -11 -10 -9 -8 ------- Run | Scr Mat Mat Mat Peak Influence 215 | . 215 72 189 Initial 29 | . . 20 29 Average 58 | . 66 34 90 Maximum Alert Level 1 | . 1 . . Low Security (%) 93 | 100 85 100 100 Level 1 6 | . 14 . . Level 2 . | . . . . Level 3 . | . . . . Level 4 . | . . . . Level 5 . | . . . . High Security . | . . . . Max Security . | . . . . Squads Dispatched 5 | . 2 . 3 Investigation . | . . . . Extermination . | . . . . Reinforcement 5 | . 2 . 3 Assault . | . . . . Garrison . | . . . . Intercept . | . . . . Construction Impeded 1 | . . . 1 Haulers Reinforced . | . . . . Stealth | -11 -10 -9 -8 --------- Run | Scr Mat Mat Mat Distress Signals 5 | . 1 2 2 Communications Jammed . | . . . . Distress Signals . | . . . . Times Spotted 40 | . 14 8 18 Peak Tracking Total 10 | . 4 8 10 Tactical Retreats 2 | . 1 . 1 Traps | -11 -10 -9 -8 ------- Run | Scr Mat Mat Mat Traps Triggered 1 | . 1 . . Indirectly . | . . . . Trap Hack Attempts . | . . . . Triggered . | . . . . Disarmed . | . . . . Reprogrammed . | . . . . Reused . | . . . . Traps Extracted . | . . . . Installed . | . . . . Triggered . | . . . . Machines | -11 -10 -9 -8 ---------- Run | Scr Mat Mat Mat Machines Disabled 4 | . 3 . 1 Max in Single Turn 2 | . 2 . 1 Machines Sabotaged . | . . . . Garrisons Compromised . | . . . . Overloaded Fab Kills . | . . . . Fab Network Shutdowns . | . . . . Hacking | -11 -10 -9 -8 --------- Run | Scr Mat Mat Mat Machines Accessed . | . . . . Terminals . | . . . . Fabricators . | . . . . Repair Stations . | . . . . Recycling Units . | . . . . Scanalyzers . | . . . . Garrison Access . | . . . . Total Hacks . | . . . . Successful . | . . . . Failed . | . . . . Catastrophic . | . . . . Database Lockouts . | . . . . Manual . | . . . . Terminals . | . . . . Fabricators . | . . . . Repair Stations . | . . . . Recycling Units . | . . . . Scanalyzers . | . . . . Garrison Access . | . . . . Terminal Hacks . | . . . . Fabricator Hacks . | . . . . Repair Station Hacks . | . . . . Recycling Unit Hacks . | . . . . Scanalyzer . | . . . . Garrison Access Hacks . | . . . . Unauthorized Hacks . | . . . . Terminals . | . . . . Fabricators . | . . . . Repair Stations . | . . . . Recycling Units . | . . . . Scanalyzers . | . . . . Garrison Access . | . . . . Data Cores Recovered . | . . . . Used . | . . . . Hacking Detections . | . . . . Full Trace Events . | . . . . Feedback Events . | . . . . Feedback Blocked . | . . . . Robot Schematics Acquired . | . . . . Robots Built . | . . . . Matter . | . . . . Time . | . . . . Total Robot Build Rating . | . . . . Part Schematics Acquired . | . . . . Parts Built . | . . . . Matter . | . . . . Time . | . . . . Total Part Build Rating . | . . . . Parts Repaired . | . . . . Time . | . . . . Parts Recycled . | . . . . Recycled Matter . | . . . . Retrieved Matter . | . . . . Retrieved Components . | . . . . Parts Scanalyzed . | . . . . Part Schematics Acquired . | . . . . Parts Damaged . | . . . . Bothacking | -11 -10 -9 -8 ------------ Run | Scr Mat Mat Mat Used RIF Installer . | . . . . Robots Hacked 1 | . 1 . . Non-combat . | . . . . Combat 1 | . 1 . . Robot Hacks Applied 1 | . 1 . . parse_system 1 | . 1 . . Relay Couplers Released . | . . . . Robots Rewired . | . . . . Allies Hacked . | . . . . Hacks Repelled . | . . . . Allies | -11 -10 -9 -8 -------- Run | Scr Mat Mat Mat Total Allies . | . . . . Largest Group . | . . . . Highest-Rated Group . | . . . . Highest-Rated Ally . | . . . . Total Orders . | . . . . Ally Attacks . | . . . . Total Damage . | . . . . Kills . | . . . . Allies Corrupted . | . . . . Allies Melted . | . . . . Intel | -11 -10 -9 -8 ------- Run | Scr Mat Mat Mat Robot Analysis Total . | . . . . Derelict Logs Recovered . | . . . . Drone Launches . | . . . . Drone Recoveries . | . . . . Exploration | -11 -10 -9 -8 ------------- Run | Scr Mat Mat Mat Turns Passed 986 | 54 477 278 177 Spaces Moved 740 | 56 307 262 115 Core 50 | 32 . . 18 Treads . | . . . . Legs 36 | . . . 36 Wheels 654 | 24 307 262 61 Hover . | . . . . Flight . | . . . . Fastest Speed 50 | 50 90 90 90 Average Speed 90 | 77 90 90 101 Slowest Speed 120 | 100 90 90 120 Overloaded Moves . | . . . . Propulsion Burnouts . | . . . . Robots Hopped . | . . . . Cave-ins Triggered . | . . . . Exploration Rate (%) 22 | 4 47 25 13 Regions Visited 3 Branch Regions . Pre-discovered Areas . | . . . . Known Exits Taken . | . . . . Unknown Exits Taken 3 | 1 1 1 . Scrap Searched . | . . . . Spaces Dug . | . . . . Terrain Destroyed 96 | . 55 3 38 Melee . | . . . . Projectile . | . . . . AOE 96 | . 55 3 38 Terrain Rammed . | . . . . Walls Destroyed . | . . . . Machines Disabled . | . . . . Actions | -11 -10 -9 -8 --------- Run | Scr Mat Mat Mat Total 996 | 65 481 299 151 Wait 173 | . 135 34 4 Move 737 | 55 306 261 115 Hop . | . . . . Pick Up 14 | 5 8 . 1 Fast Attach 3 | 2 . 1 . Attach 13 | 3 4 . 6 Detach . | . . . . Swap 3 | . 2 1 . Drop . | . . . . Fire 38 | . 22 2 14 Melee 4 | . 4 . . Ram 11 | . . . 11 Kick . | . . . . Crush . | . . . . Escape Stasis . | . . . . Rewire . | . . . . Trap . | . . . . Miscellaneous . | . . . . Route ------- -11/Scrapyard -10/Materials -9/Materials -8/Materials History --------- Turn | Location | Event 24 | -11/Scrapyard | Discovered new exit (range 15) 55 | -11/Scrapyard | Entered Materials 316 | -10/Materials | Build established: Mutant 325 | -10/Materials | Core integrity fell below 50% 484 | -10/Materials | Discovered new exit (range 14) 532 | -10/Materials | Entered another Materials area 532 | -9/Materials | Evolved 2 slots: Propulsion x1, Utility x1 766 | -9/Materials | Discovered new exit (range 12) 810 | -9/Materials | Entered another Materials area 810 | -8/Materials | Evolved 2 slots: Propulsion x1, Utility x1 917 | -8/Materials | Lost 6 parts (1p2n1u2w) 979 | -8/Materials | Core integrity fell below 50% 983 | -8/Materials | Core integrity fell below 20% 987 | -8/Materials | Destroyed by G-47 Trooper with Particle Gun Last Messages --------------- Penetrated by Slug. Aluminum Leg destroyed. U-05 Engineer builds a Wall. Aluminum Leg destroyed. Lgt. Ion Engine destroyed. W-25 Informer sends out distress signal. Targeting Computer destroyed. Aluminum Leg destroyed. Slug penetrates Wall. Slammed into G-47 Trooper. Destabilizing: System corrupted (+1). Sml. Storage Unit destroyed. Slammed into G-47 Trooper. Slug penetrates G-47 Trooper. Slammed into G-47 Trooper. Connecting with Terminal... Current location identified: Materials Slammed into G-47 Trooper. U-05 Engineer builds a Wall. Slammed into G-47 Trooper. Map ----- +----------------------------------------------------+ | ???????????????????# #"T"# | | ?????????????????### | | ?????????????????#"" | | | ?????????????????#"T # | | ?????????????????#"" """ # | | ?????????????????### """ # | | ??????????????????# """ # | | ??????????????????# * # | | ??????????????????# % + | | ??????????????????# # | | ??????????????????# ## | | ??##????????????#####/####### #? | | ### ######??????# #?? #? | | # #??????# #?? #? | | # #??????# """ " " #??+## | | # === ######## """ "" ### | | # =!= ## # """ "" + ? | | # =!= ## # % #????? | | # ## """ # #????? | | # ## """ | #????? | | ? ## """ #/### ###????? | | ??? ??# ##??????? | | ??###+##??# = #% # ##?????? | | ??# #######+## #?????? | | ??# u r ?? | | ??#! T @g ?? | | ??# ggg########## ? | | ??##Yg##????????### ## | | ???# g#???????????###? | | ???# #??????????????? | | ???# ########???????? ? | | ???# # #???????? ####### | | ???# # #???????? #?????? | | ???# # #???????? #?????? | | ???# + #?????????????????? | | ???# # #?????????????????? | | ???# # #?????????????????? | | ???###########?????????????????? | | ???????????????????????????????? | | ???????????????????????????????? | | ???????????????????????????????? | | ???????????????????????????????? | | ???????????????????????????????? | | ???????????????????????????????? | | ???????????????????????????????? | | ???????????????????????????????? | | ???????????????????????????????? | | ???????????????????????????????? | | ???????????????????????????????? | | ???????????????????????????????? | +----------------------------------------------------+ Best States ------------- Heat Dissipation 31 Energy Generation 10 Energy Capacity 250 Matter Stores 300 Matter Capacity 300 Sight Range 16 Robot Scan Range 10 Terrain Scan Density 10 Evasion (%) 42 Targeting Accuracy 5 Item Schematics ----------------- None Robot Schematics ------------------ None Fabricated ------------ Nothing Alien Tech Used ----------------- None Achievements -------------- None Challenges ------------ None Game ------ Seed HugeUltimateDevice Manual? 0 Play Time 00:21:20 Cumulative 33.0 hours Start 2021.03.09 @ 21:13:07 End 2021.03.09 @ 21:37:10 Sessions 1 Manual Loads 0 Difficulty Rogue Special Mode None Game No. 39 Rogue 30 Adventurer 9 Explorer 0 Win Type - Total 0 Types 0/0/0/0/0/0/0/0/0 Lore% 23 Gallery% 21 Achievement% 16 Wizard Run 0 Options --------- ASCII 1 Keyboard 0 Movement Arrows Keybinds 0 Fullscreen 1 Font 18/SmallcapsGlow Map View 76x50 Tactical HUD 0 Map Filters NONE Filters NONE Steam 1 RUN: 81885aec-f9d7-4737-a6f7-402a56b0b489